[Event "44th Chess Olympiad Women 2022"]
[Site "Chennai"]
[Date "2022.07.29"]
[Round "1.17"]
[White "Curwin, Nickaylah"]
[Black "Ratsma, Rosa"]
[Result "0-1"]
[WhiteElo "1499"]
[BlackElo "2226"]
[Annotator "RC"]
[PlyCount "107"]
[EventDate "2022.??.??"]
[TimeControl "60"]

1. d4 {[%emt 0:00:04]} Nf6 {[%emt 0:00:09]} 2. Bf4 {[%emt 0:00:06]} d5 {
[%emt 0:00:17]} 3. Nf3 {[%emt 0:00:31]} e6 {[%emt 0:00:29]} 4. e3 {[%emt 0:00:
00]} Bd6 {[%emt 0:00:26]} 5. Bg3 {[%emt 0:00:23]} O-O {[%emt 0:00:30]} 6. Bd3 {
[%emt 0:00:58]} c5 {[%emt 0:00:47]} 7. c3 {[%emt 0:00:42]} Qc7 {[%emt 0:00:53]}
8. Nbd2 {[%emt 0:01:08]} Nbd7 {[%emt 0:01:05]} 9. Qe2 {[%emt 0:00:43]} Re8 {
[%emt 0:07:49]} 10. e4 {[%emt 0:08:20]} e5 {[%emt 0:06:36]} 11. O-O {[%emt 0:
00:00]} exd4 {[%emt 0:11:09]} 12. cxd4 {[%emt 0:01:04]} Bxg3 {[%emt 0:04:24]}
13. hxg3 {[%emt 0:01:05]} dxe4 {[%emt 0:04:09]} 14. Nxe4 {[%emt 0:02:50]} Nxe4
{[%emt 0:01:46]} 15. Bxe4 {[%emt 0:00:45]} Nf6 {[%emt 0:00:29]} 16. Nd2 {
[%emt 0:09:07]} Bf5 {[%emt 0:02:42]} 17. f3 {[%emt 0:07:40]} cxd4 {[%emt 0:00:
00]} 18. Qd3 {[%emt 0:06:00]} Nxe4 {[%emt 0:08:52]} 19. fxe4 {[%emt 0:00:49]}
Bg6 {[%emt 0:01:12]} 20. Rac1 {[%emt 0:06:40]} Qb6 {[%emt 0:04:19]} 21. b3 {
[%emt 0:04:00]} Rac8 {[%emt 0:03:13]} 22. Nc4 {[%emt 0:04:16]} Qc5 {[%emt 0:00:
00]} 23. Rce1 {[%emt 0:04:20]} b5 {[%emt 0:02:19]} 24. Nd2 {[%emt 0:00:51]} Qc2
{[%emt 0:05:38]} 25. Qe2 {[%emt 0:11:32]} a6 {[%emt 0:10:52]} 26. Qf2 {[%emt 0:
00:00]} Qd3 {[%emt 0:02:45]} 27. Qf4 {[%emt 0:07:25]} Rc2 {[%emt 0:01:49]} 28.
Rf2 {[%emt 0:00:12]} Rxa2 {[%emt 0:02:12]} 29. e5 {[%emt 0:00:13]} h6 {[%emt 0:
00:00]} 30. Nf3 {[%emt 0:04:09]} Rxf2 {[%emt 0:00:45]} 31. Kxf2 {[%emt 0:00:02]
} Qxb3 {[%emt 0:01:27]} 32. Qxd4 {[%emt 0:01:59]} Rc8 {[%emt 0:01:54]} 33. Qd7
{[%emt 0:01:01]} Qc2+ {[%emt 0:01:17]} 34. Re2 {[%emt 0:01:45]} Qc5+ {[%emt 0:
00:00]} 35. Nd4 {[%emt 0:01:47]} Bd3 {[%emt 0:02:46]} 36. Re3 {[%emt 0:01:22]}
Bc4 {[%emt 0:00:43]} 37. Nf5 {[%emt 0:00:59]} Rf8 {[%emt 0:01:49]} 38. Nxh6+ {
[%emt 0:01:36]} gxh6 {[%emt 0:00:55]} 39. Qg4+ {[%emt 0:00:18]} Kh8 {[%emt 0:
00:00]} 40. Qf4 {[%emt 0:00:42]} Qb6 {[%emt 0:00:56]} 41. e6 {[%emt 0:30:25]}
Qc5 {[%emt 0:09:49]} 42. Qxh6+ {[%emt 0:00:00]} Kg8 {[%emt 0:00:07]} 43. e7 {
[%emt 0:00:00]} Re8 {[%emt 0:02:33]} 44. Qf6 {[%emt 0:00:00]} Bd3 {[%emt 0:00:
00]} 45. g4 {[%emt 0:00:00]} Be4 {[%emt 0:01:27]} 46. Qxa6 {[%emt 0:00:00]}
Rxe7 {[%emt 0:01:08]} 47. Qf6 {[%emt 0:00:00]} Re6 {[%emt 0:01:33]} 48. Qf4 {
[%emt 0:00:00]} Bg6 {[%emt 0:01:20]} 49. Kf3 {[%emt 0:00:00]} Qxe3+ {[%emt 0:
00:00]} 50. Qxe3 {[%emt 0:00:00]} Rxe3+ {[%emt 0:00:05]} 51. Kxe3 {[%emt 0:00:
00]} b4 {[%emt 0:00:28]} 52. Kd4 {[%emt 0:00:00]} b3 {[%emt 0:00:13]} 53. Kc3 {
[%emt 0:00:00]} Bc2 {[%emt 0:00:08]} 54. Kd4 {[%emt 0:00:31]} 0-1

[Event "44th Chess Olympiad Women 2022"]
[Site "Chennai"]
[Date "2022.07.29"]
[Round "1.17"]
[White "Lanchava, Tea"]
[Black "Watson, Gabriella"]
[Result "1-0"]
[WhiteElo "2257"]
[BlackElo "1164"]
[Annotator "ChessBase"]
[PlyCount "87"]
[EventDate "2022.??.??"]
[TimeControl "60"]

1. c4 {[%emt 0:00:07]} c6 {[%emt 0:00:14]} 2. Nf3 {[%emt 0:00:41]} d5 {[%emt 0:
00:00]} 3. e3 {[%emt 0:00:27]} Nf6 {[%emt 0:01:18]} 4. b3 {[%emt 0:00:28]} Bf5
{[%emt 0:02:19]} 5. Be2 {[%emt 0:10:44]} e6 {[%emt 0:05:18]} 6. O-O {[%emt 0:
00:00]} Bd6 {[%emt 0:05:12]} 7. Bb2 {[%emt 0:08:53]} Nbd7 {[%emt 0:06:00]} 8.
Nh4 {[%emt 0:08:28]} Bg6 {[%emt 0:06:55]} 9. Nxg6 {[%emt 0:00:25]} hxg6 {
[%emt 0:00:20]} 10. g3 {[%emt 0:00:27]} O-O {[%emt 0:16:18]} 11. d3 {[%emt 0:
00:00]} Qb6 {[%emt 0:07:28]} 12. Nd2 {[%emt 0:01:08]} Rac8 {[%emt 0:02:48]} 13.
Rc1 {[%emt 0:09:24]} a5 {[%emt 0:08:52]} 14. d4 {[%emt 0:04:18]} c5 {[%emt 0:
00:00]} 15. a3 {[%emt 0:04:19]} Qd8 {[%emt 0:12:41]} 16. Bf3 {[%emt 0:01:27]}
Qe7 {[%emt 0:04:18]} 17. Nb1 {[%emt 0:00:14]} Nb6 {[%emt 0:01:36]} 18. cxd5 {
[%emt 0:02:08]} exd5 {[%emt 0:01:42]} 19. Qd2 {[%emt 0:01:05]} Ra8 {[%emt 0:00:
00]} 20. dxc5 {[%emt 0:00:18]} Bxc5 {[%emt 0:01:25]} 21. a4 {[%emt 0:00:22]}
Rfd8 {[%emt 0:01:32]} 22. Qd3 {[%emt 0:00:34]} Bb4 {[%emt 0:03:04]} 23. Nc3 {
[%emt 0:02:31]} Rac8 {[%emt 0:00:50]} 24. Nb5 {[%emt 0:00:51]} Qe6 {[%emt 0:00:
00]} 25. Bg2 {[%emt 0:01:11]} Ne4 {[%emt 0:01:43]} 26. Qd4 {[%emt 0:02:31]} Nf6
{[%emt 0:00:20]} 27. g4 {[%emt 0:02:44]} g5 {[%emt 0:00:35]} 28. h3 {[%emt 0:
00:00]} Kf8 {[%emt 0:00:20]} 29. f4 {[%emt 0:01:38]} gxf4 {[%emt 0:01:16]} 30.
exf4 {[%emt 0:00:09]} Nbd7 {[%emt 0:00:38]} 31. g5 {[%emt 0:00:27]} Ng8 {
[%emt 0:00:47]} 32. Bxd5 {[%emt 0:03:55]} Qg6 {[%emt 0:00:44]} 33. Be4 {
[%emt 0:00:12]} f5 {[%emt 0:00:50]} 34. Rxc8 {[%emt 0:00:15]} Rxc8 {[%emt 0:00:
00]} 35. Qxd7 {[%emt 0:00:16]} Re8 {[%emt 0:00:27]} 36. Bxf5 {[%emt 0:00:39]}
Qf7 {[%emt 0:00:12]} 37. Qxf7+ {[%emt 0:00:40]} Kxf7 {[%emt 0:00:09]} 38. g6+ {
[%emt 0:00:54]} Kf8 {[%emt 0:00:29]} 39. Be5 {[%emt 0:01:17]} Ne7 {[%emt 0:00:
00]} 40. Be4 {[%emt 0:00:32]} Nc6 {[%emt 0:00:30]} 41. Bxc6 {[%emt 0:30:28]}
bxc6 {[%emt 0:30:12]} 42. Nd4 {[%emt 0:00:38]} Bc5 {[%emt 0:00:27]} 43. Kh2 {
[%emt 0:00:09]} Kg8 {[%emt 0:01:30]} 44. Nxc6 {[%emt 0:00:37]} 1-0

[Event "44th Chess Olympiad Women 2022"]
[Site "Chennai"]
[Date "2022.07.29"]
[Round "1.17"]
[White "Miller, Rachel"]
[Black "Roebers, Eline"]
[Result "0-1"]
[WhiteElo "1961"]
[BlackElo "2344"]
[Annotator "TA"]
[PlyCount "52"]
[EventDate "2022.??.??"]
[TimeControl "60"]

{[%evp 9,52,11,9,12,8,0,0,0,0,0,7,0,-8,0,0,-45,-39,-126,-124,-131,-52,-97,-53,
-60,-56,-59,-62,-68,-63,-156,-172,-191,-183,-149,-88,-79,-66,-48,-56,-158,-148,
-169,-39,-62,-93]} 1. e4 {[%emt 0:00:03]} c5 {[%emt 0:00:21]} 2. Nf3 {[%emt 0:
00:00]} e6 {[%emt 0:00:57]} 3. g3 {[%emt 0:00:27]} Nc6 {[%emt 0:00:47]} 4. Bg2
{[%emt 0:00:29]} Nf6 {[%emt 0:02:16]} 5. Qe2 {[%emt 0:00:38]} e5 {[%emt 0:00:
00]} 6. O-O {[%emt 0:03:23] B40: Sicilian: 2...e6, Unusual lines.} Be7 {
[%emt 0:00:26]} 7. c3 {[%emt 0:01:32][%cal Yd2d4]} O-O {[%emt 0:03:44]} 8. Na3
{[%emt 0:02:38][%cal Yb1a3,Ya3c4,Yc4e3,Ye3c2] The position is equal. 8.Na3
scores better than 8.Rd1.} Re8 {[%emt 0:01:20]} 9. d3 {[%emt 0:04:15]} h6 {
[%emt 0:03:46]} 10. Nc4 {[%emt 0:03:33]} Bf8 {[%emt 0:01:57]} 11. Ne3 {[%emt 0:
08:29]} d5 {[%emt 0:06:05][%cal Yd7d5,Yd5d4]} 12. Nh4 {[%emt 0:01:34][%cal
Re4d5]} Be6 {[%emt 0:03:45]} 13. Nhf5 {[%emt 0:00:30]} (13. Qf3 $15 Ne7 14.
Nhf5) 13... d4 $17 {[%emt 0:00:30] [#]} 14. Nc2 $146 {[%emt 0:00:00]} ({
Predecessor:} 14. Ng4 Nxg4 15. Qxg4 g6 16. Bxh6 Bxh6 17. Nxh6+ Kf8 18. Nf5 gxf5
19. exf5 Bd7 20. f4 {½-½ (40) De Jong,M (2345)-Wagner,D (2481) Hoogeveen 2013
}) 14... Qd7 {[%emt 0:00:30]} (14... c4 $17 {...Bxf5 is the strong threat.} 15.
cxd4 exd4) 15. g4 {[%emt 0:30:00]} g6 {[%emt 0:31:59]} 16. Nxh6+ {[%emt 0:12:
29]} Bxh6 {[%emt 0:00:07]} 17. Bxh6 {[%emt 0:00:10] Strongly threatening h3.}
Bxg4 {[%emt 0:01:02]} 18. f3 {[%emt 0:02:18]} Be6 {[%emt 0:00:00]} 19. c4 {
[%emt 0:06:28] [#]} (19. cxd4 $15 cxd4 20. Qf2) 19... Nh5 $1 {[%emt 0:06:43]}
20. Qd2 {[%emt 0:05:10]} f6 {[%emt 0:03:25] aiming for ...Qh7.} 21. f4 {
[%emt 0:01:45][%cal Yf4f5]} exf4 {[%emt 0:03:51]} ({Of course not} 21... Nxf4
$6 22. Bxf4 exf4 23. Rxf4 $11) (21... Qh7 $142 22. fxe5 Nxe5) 22. Bxf4 {
[%emt 0:00:16]} Qe7 {[%emt 0:04:59]} (22... Nxf4 23. Rxf4 Qe7 24. b4 $11) 23.
e5 {[%emt 0:03:01]} Nxe5 {[%emt 0:01:39]} ({Reject} 23... Nxf4 24. exf6 Qxf6
25. Rxf4 $11 (25. Qxf4 Qxf4 26. Rxf4 Bf5 $17)) 24. Bxe5 {[%emt 0:02:03]} (24.
b4 $1 $15) 24... fxe5 {[%emt 0:00:07]} 25. Rae1 {[%emt 0:00:18] [#]} Qg7 {
[%emt 0:02:01]} ({Black should play} 25... Rf8 $1 $19 26. Qh6 Rxf1+ 27. Rxf1
Qg7) 26. Qg5 {[%emt 0:00:45]} Nf4 {[%emt 0:06:07] Weighted Error Value:
White=0.22 (precise) /Black=0.17 (very precise)} 0-1

[Event "44th Chess Olympiad Women 2022"]
[Site "Chennai"]
[Date "2022.07.29"]
[Round "1.17"]
[White "Peng, Zhaoqin"]
[Black "Clarke, Adani"]
[Result "1-0"]
[WhiteElo "2349"]
[BlackElo "1812"]
[Annotator "TA"]
[PlyCount "79"]
[EventDate "2022.??.??"]
[TimeControl "60"]

{[%evp 11,79,29,38,10,117,47,55,25,163,144,146,132,200,175,218,175,168,176,159,
166,160,166,168,163,179,152,219,224,214,226,205,196,237,222,238,238,254,225,
267,255,300,295,291,284,543,538,492,424,418,416,401,404,2823,493,529,451,420,
418,664,551,587,582,597,589,12837,12837,12840,12840,12841,12841]} 1. c4 {
[%emt 0:00:07]} e6 {[%emt 0:00:09]} 2. Nc3 {[%emt 0:00:38]} b6 {[%emt 0:00:11]}
3. e4 {[%emt 0:03:14]} Bb7 {[%emt 0:00:51]} 4. Nf3 {[%emt 0:00:52]} Bb4 {
[%emt 0:01:39]} 5. Bd3 {[%emt 0:00:32]} Ne7 {[%emt 0:10:34]} 6. O-O {[%emt 0:
00:00]} O-O {[%emt 0:00:17]} 7. Re1 {[%emt 0:09:23] [#] A10: English Opening:
Unusual Replies for Black.} d5 $146 {[%emt 0:03:28]} (7... Ng6 $11 {remains
equal.}) ({Predecessor:} 7... Ng6 8. Bc2 Nc6 9. d4 Na5 10. Bd3 c5 11. d5 Bxc3
12. bxc3 d6 13. Bg5 f6 14. Be3 Ba6 15. Qe2 Qd7 {0-1 (53) Kolbus,D (2285)-Bauer,
C (2639) Zuerich 2019}) 8. cxd5 {[%emt 0:09:08]} (8. exd5 $16 h6 9. a3 Bxc3 10.
dxc3) 8... exd5 $14 {[%emt 0:00:16]} 9. e5 {[%emt 0:00:03][%cal Yd3h7] [#]
Threatens to win with Bxh7+! White is slightly better.} h6 {[%emt 0:07:03]
This move loses the game for Black.} (9... Ng6 $1 $11) 10. a3 $18 {[%emt 0:00:
00]} Bxc3 {[%emt 0:02:10]} 11. dxc3 {[%emt 0:00:06]} c5 {[%emt 0:00:56]} (11...
Nd7 $16) 12. Nh4 {[%emt 0:05:55]} f5 {[%emt 0:20:35]} 13. Qh5 {[%emt 0:07:41]
[%cal Yc1h6]} Qe8 {[%emt 0:03:20]} 14. Qxe8 {[%emt 0:01:47]} Rxe8 {[%emt 0:00:
00]} 15. Nxf5 {[%emt 0:00:07] White is more active.} Nxf5 {[%emt 0:05:07]} 16.
Bxf5 {[%emt 0:00:07]} Nc6 {[%emt 0:01:16]} 17. f4 {[%emt 0:05:24]} Rad8 {
[%emt 0:02:41]} 18. Bd2 {[%emt 0:02:59]} Na5 {[%emt 0:02:41]} (18... d4 $16 19.
Be4 d3) 19. Bg6 {[%emt 0:07:36]} Re7 {[%emt 0:03:45]} 20. Rad1 {[%emt 0:01:31]}
Bc6 {[%emt 0:03:20]} 21. Bc2 {[%emt 0:10:09] Against Ba4} Be8 {[%emt 0:06:56]}
22. h3 {[%emt 0:04:04]} Nc6 {[%emt 0:09:07]} 23. b4 {[%emt 0:05:39]} Bf7 {
[%emt 0:06:53]} 24. Ba4 {[%emt 0:10:01]} Rc8 {[%emt 0:01:34]} 25. Be3 {[%emt 0:
00:00][%cal Yd2e3,Ye3f2,Yf2c5]} Nd8 {[%emt 0:02:03]} 26. bxc5 {[%emt 0:01:28]}
bxc5 {[%emt 0:00:07]} 27. Bf2 {[%emt 0:00:25] Hoping for f5. This bishop pair
is nice.} Rb7 $2 {[%emt 0:01:25]} (27... g6 28. Rd2 Ne6) 28. f5 {[%emt 0:00:32]
} Nc6 {[%emt 0:02:36]} 29. Bxc6 {[%emt 0:02:47]} Rxc6 {[%emt 0:00:07]} 30. e6 {
[%emt 0:00:03]} Be8 {[%emt 0:00:08]} 31. Rxd5 {[%emt 0:00:00] And now Rd8
would win.} Rb3 {[%emt 0:00:34]} (31... Rc8 $142 32. Red1 Kh7) 32. Bxc5 {
[%emt 0:01:31]} (32. Rd8 $142 Kf8 33. Red1) 32... Rc8 {[%emt 0:00:00]} 33. f6 {
[%emt 0:02:51]} gxf6 {[%emt 0:00:32]} 34. Bd4 {[%emt 0:02:06]} Rxa3 {[%emt 0:
01:50]} (34... Rb5 $142) 35. Re3 {[%emt 0:00:27] Rf5 is the strong threat.
White is clearly winning.} Ra6 {[%emt 0:01:00]} 36. Bxf6 {[%emt 0:00:31] Black
must now prevent Rg3+.} Ra1+ {[%emt 0:01:13]} 37. Kh2 {[%emt 0:00:10]} Ra6 {
[%emt 0:00:18] [#]} 38. Rd7 $1 {[%emt 0:01:32] Intending Rg7+ and mate.} Bxd7 {
[%emt 0:00:57]} (38... Rxe6 39. Rg7+) 39. exd7 {[%emt 0:00:00]} Rb8 {[%emt 0:
00:17]} 40. Re8+ {[%emt 0:00:11] Weighted Error Value: White=0.45/Black=0.47}
1-0

[Event "44th Chess Olympiad Women 2022"]
[Site "Chennai"]
[Date "2022.07.29"]
[Round "1.18"]
[White "Abeysinghe, H M H Janandani"]
[Black "Gajcin, Marina"]
[Result "0-1"]
[WhiteElo "1516"]
[BlackElo "2271"]
[Annotator "ChessBase"]
[PlyCount "82"]
[EventDate "2022.??.??"]
[TimeControl "60"]

1. d4 {[%emt 0:00:09]} Nf6 {[%emt 0:00:26]} 2. c4 {[%emt 0:00:17]} g6 {[%emt 0:
00:00]} 3. Nc3 {[%emt 0:00:27]} d5 {[%emt 0:00:06]} 4. Bg5 {[%emt 0:00:51]} Bg7
{[%emt 0:01:26]} 5. Bxf6 {[%emt 0:02:37]} Bxf6 {[%emt 0:02:31]} 6. cxd5 {
[%emt 0:00:36]} c6 {[%emt 0:05:01]} 7. e3 {[%emt 0:01:42]} cxd5 {[%emt 0:03:29]
} 8. Qb3 {[%emt 0:06:03]} e6 {[%emt 0:03:23]} 9. Bd3 {[%emt 0:05:14]} O-O {
[%emt 0:01:34]} 10. Nge2 {[%emt 0:04:30]} Nc6 {[%emt 0:05:40]} 11. O-O {
[%emt 0:04:10]} Bd7 {[%emt 0:10:36]} 12. Rfc1 {[%emt 0:07:38]} Rc8 {[%emt 0:00:
00]} 13. Rab1 {[%emt 0:03:27]} Bg7 {[%emt 0:08:15]} 14. a3 {[%emt 0:08:13]} Na5
{[%emt 0:11:37]} 15. Qa2 {[%emt 0:03:52]} Nc4 {[%emt 0:05:53]} 16. b3 {[%emt 0:
00:00]} Nd6 {[%emt 0:00:22]} 17. a4 {[%emt 0:03:28]} Qg5 {[%emt 0:04:43]} 18.
b4 {[%emt 0:06:00]} Nf5 {[%emt 0:03:13]} 19. Bxf5 {[%emt 0:04:11]} Qxf5 {
[%emt 0:00:10]} 20. b5 {[%emt 0:01:21]} Rc4 {[%emt 0:07:19]} 21. e4 {[%emt 0:
00:00]} Qg5 {[%emt 0:01:10]} 22. exd5 {[%emt 0:04:35]} exd5 {[%emt 0:00:26]}
23. Nxd5 {[%emt 0:07:09]} Rxc1+ {[%emt 0:00:38]} 24. Rxc1 {[%emt 0:00:00]} Be6
{[%emt 0:01:46]} 25. Rc5 {[%emt 0:04:05]} b6 {[%emt 0:02:54]} 26. f4 {[%emt 0:
00:00]} Qd8 {[%emt 0:00:37]} 27. Rc1 {[%emt 0:02:19]} Bxd5 {[%emt 0:00:16]} 28.
Qd2 {[%emt 0:00:39]} Re8 {[%emt 0:02:11]} 29. Nc3 {[%emt 0:01:11]} Qd6 {
[%emt 0:01:22]} 30. Rd1 {[%emt 0:01:32]} Bb3 {[%emt 0:00:24]} 31. Rc1 {[%emt 0:
00:00]} Qxd4+ {[%emt 0:00:03]} 32. Qf2 {[%emt 0:00:54]} Qxf2+ {[%emt 0:00:12]}
33. Kxf2 {[%emt 0:00:07]} Bd4+ {[%emt 0:00:02]} 34. Kf3 {[%emt 0:00:20]} Re3+ {
[%emt 0:00:06]} 35. Kg4 {[%emt 0:00:20]} Bxc3 {[%emt 0:03:41]} 36. g3 {[%emt 0:
00:00]} Be6+ {[%emt 0:00:26]} 37. Kg5 {[%emt 0:00:10]} Kg7 {[%emt 0:00:52]} 38.
Rxc3 {[%emt 0:00:15]} Rxc3 {[%emt 0:00:10]} 39. g4 {[%emt 0:00:34]} f6+ {
[%emt 0:00:47]} 40. Kh4 {[%emt 0:00:08]} h6 {[%emt 0:00:13]} 41. g5 {[%emt 0:
00:00]} Rh3# {[%emt 0:30:05]} 0-1

[Event "44th Chess Olympiad Women 2022"]
[Site "Chennai"]
[Date "2022.07.29"]
[Round "1.18"]
[White "Eric, Jovana"]
[Black "Gamage, Desandhi Dhihansa"]
[Result "1-0"]
[WhiteElo "2271"]
[BlackElo "1561"]
[Annotator "NA RC"]
[PlyCount "55"]
[EventDate "2022.??.??"]
[TimeControl "60"]

1. e4 {[%emt 0:00:03]} c5 {[%emt 0:00:09]} 2. Nf3 {[%emt 0:00:10]} d6 {[%emt 0:
00:00]} 3. Bb5+ {[%emt 0:00:16]} Nc6 {[%emt 0:00:06]} 4. O-O {[%emt 0:00:30]}
Bg4 {[%emt 0:03:16]} 5. h3 {[%emt 0:01:59]} Bh5 {[%emt 0:02:28]} 6. Nc3 {
[%emt 0:04:27]} Nf6 {[%emt 0:03:05]} 7. Re1 {[%emt 0:02:00]} e6 {[%emt 0:08:06]
} 8. g4 {[%emt 0:07:32]} Bg6 {[%emt 0:00:15]} 9. d4 {[%emt 0:00:36]} d5 {
[%emt 0:28:27]} 10. exd5 {[%emt 0:03:26]} Nxd5 {[%emt 0:00:51]} 11. Nxd5 {
[%emt 0:00:24]} Qxd5 {[%emt 0:00:09]} 12. c4 {[%emt 0:00:06]} Qd6 {[%emt 0:00:
00]} 13. d5 {[%emt 0:04:47]} O-O-O {[%emt 0:00:17]} 14. Bg5 {[%emt 0:01:12]}
Ne7 {[%emt 0:01:53]} 15. dxe6 {[%emt 0:02:09]} fxe6 {[%emt 0:08:16]} 16. Qe2 {
[%emt 0:01:23]} Bf7 {[%emt 0:02:49]} 17. Rad1 {[%emt 0:01:56]} Qb6 {[%emt 0:00:
00]} 18. Rxd8+ {[%emt 0:00:28]} Qxd8 {[%emt 0:03:20]} 19. Ne5 {[%emt 0:01:34]}
Bg8 {[%emt 0:02:44]} 20. Rd1 {[%emt 0:00:21]} Qa5 {[%emt 0:02:24]} 21. Qd3 {
[%emt 0:01:18]} a6 {[%emt 0:09:15]} 22. Qd7+ {[%emt 0:01:03]} Kb8 {[%emt 0:00:
00]} 23. Bxe7 {[%emt 0:00:43]} axb5 {[%emt 0:04:07]} 24. Nc6+ {[%emt 0:01:42]}
bxc6 {[%emt 0:00:19]} 25. Qe8+ {[%emt 0:00:04]} Kc7 {[%emt 0:00:23]} 26. Rd7+ {
[%emt 0:00:18]} Kb6 {[%emt 0:00:06]} 27. Qb8+ {[%emt 0:00:10]} Ka6 {[%emt 0:00:
00]} 28. Ra7# {[%emt 0:00:05]} 1-0

[Event "44th Chess Olympiad Women 2022"]
[Site "Chennai"]
[Date "2022.07.29"]
[Round "1.18"]
[White "Injac, Teodora"]
[Black "Wijesuriya, G P Y.."]
[Result "1-0"]
[WhiteElo "2372"]
[BlackElo "1579"]
[Annotator "TA"]
[PlyCount "57"]
[EventDate "2022.??.??"]
[TimeControl "60"]

{[%evp 9,57,29,43,31,40,34,51,34,73,75,89,100,179,186,180,171,177,197,220,213,
277,283,328,352,356,341,482,447,516,578,662,652,803,776,750,750,964,981,1118,
1018,997,986,1171,1171,1305,983,970,955,2908,1785]} 1. Nf3 {[%emt 0:00:19]} d5
{[%emt 0:00:37]} 2. g3 {[%emt 0:00:32]} Nf6 {[%emt 0:00:12]} 3. Bg2 {[%emt 0:
00:00]} e6 {[%emt 0:01:01][%cal Ye7e6,Ye6e5,Ye5d4]} 4. O-O {[%emt 0:00:00]} Nc6
{[%emt 0:00:52]} 5. d4 {[%emt 0:01:11]} a6 {[%emt 0:01:41]} 6. c3 {[%emt 0:09:
20] D02:1 d4 d5 2 Nf3 sidelines, including 2...Nf6 3 g3 and 2... Nf6 3 Bf4.}
Bd6 {[%emt 0:02:13]} 7. Bg5 {[%emt 0:01:16] [#]} O-O $146 {[%emt 0:00:00]} ({
Predecessor:} 7... h6 8. Bxf6 Qxf6 9. Nbd2 O-O 10. e4 Qd8 11. Re1 Re8 12. Qb3
Na5 {1-0 (57) Seeman,T (2405)-Lehti,J (2233) Finland 2012}) 8. Nbd2 {[%emt 0:
00:35][%cal Ye2e4] White is slightly better.} e5 {[%emt 0:08:55]} 9. e4 {
[%emt 0:06:33]} exd4 {[%emt 0:02:48]} 10. exd5 {[%emt 0:01:09]} Ne5 {[%emt 0:
00:00]} (10... dxc3 $16 11. Bxf6 (11. dxc6 cxd2 12. Nxd2 bxc6 $14) (11. bxc3
Ne5 $14) 11... gxf6) 11. Nxe5 $18 {[%emt 0:08:43]} ({Don't take} 11. cxd4 $6
Nxf3+ 12. Qxf3 Bg4 13. Qxg4 Nxg4 $16) 11... Bxe5 {[%emt 0:00:54]} 12. Nc4 {
[%emt 0:00:16][%csl Yd4,Ye5]} Bd6 {[%emt 0:12:08]} 13. Nxd6 {[%emt 0:01:10]} ({
Resist} 13. cxd4 $6 h6 $16) 13... Qxd6 {[%emt 0:00:17]} 14. Qxd4 {[%emt 0:00:
00]} Ne8 {[%emt 0:03:29]} 15. Rfe1 {[%emt 0:01:40] Threatens to win with Be7.}
f6 {[%emt 0:00:06]} 16. Bf4 {[%emt 0:00:15] This bishop pair is nice.} Qd8 {
[%emt 0:01:33]} 17. c4 {[%emt 0:01:51][%cal Yc3c4,Yc4c5]} Rf7 {[%emt 0:01:37]}
(17... Nd6 {is a better defense.} 18. c5 Nf5) 18. c5 {[%emt 0:00:00] White is
clearly winning.} Bf5 {[%emt 0:01:06]} 19. d6 {[%emt 0:03:26] [#] Strongly
threatening Bd5.} cxd6 {[%emt 0:04:11]} 20. Bd5 {[%emt 0:00:37]} dxc5 {[%emt 0:
00:06]} 21. Qxc5 {[%emt 0:04:11]} Bg6 {[%emt 0:00:51]} 22. Rad1 {[%emt 0:00:30]
[%cal Ya1d1,Yd1d7,Yd7d2,Yd2c2,Yc2c8]} Qc8 {[%emt 0:00:00]} 23. Qe7 {[%emt 0:00:
31]} h6 {[%emt 0:03:18]} 24. Bxf7+ {[%emt 0:01:20]} Bxf7 {[%emt 0:00:11]} 25.
Rd7 {[%emt 0:00:18]} Bg6 {[%emt 0:02:52]} 26. Rc1 {[%emt 0:00:17]} Bc2 {
[%emt 0:04:37]} 27. Rd2 {[%emt 0:00:18]} Qc4 {[%emt 0:00:00]} 28. Rdxc2 {
[%emt 0:00:21]} Qxa2 {[%emt 0:00:09]} 29. Rc8 {[%emt 0:00:21] White took
control after the opening. Weighted Error Value: White=0.09 (flawless) /
Black=0.47} 1-0